[Event "Nordic Youth-ch A 2019"]
[Site "Borgarnes"]
[Date "2019.02.15"]
[Round "2.12"]
[White "Luu, Robert"]
[Black "Szczepanowski, Tomasz"]
[Result "1-0"]
[ECO "A52"]
[WhiteElo "1687"]
[BlackElo "1882"]
[Annotator "NA RC"]
[PlyCount "41"]
[EventDate "2019.02.03"]
[EventType "swiss"]
[EventCountry "ISL"]
[SourceTitle "playchess.com"]
[Source "ChessBase"]
[SourceQuality "1"]
[TimeControl "40/5400+30:1800+30"]

1. d4 Nf6 {[%emt 0:00:10]} 2. c4 {[%emt 0:00:00]} e5 {[%emt 0:00:25]} 3. dxe5 {[%emt 0:00:06]} Ng4 {[%emt 0:00:07]} 4. Nf3 {[%emt 0:00:24]} Nc6 {[%emt 0:00:29]} 5. Nc3 {[%emt 0:00:44]} Ngxe5 {[%emt 0:00:39]} 6. Nxe5 {[%emt 0:00:25]} Nxe5 {[%emt 0:00:10]} 7. e3 {[%emt 0:00:29]} Bc5 {[%emt 0:01:23]} 8. a3 {[%emt 0:00:40]} a5 {[%emt 0:00:55]} 9. b3 {[%emt 0:00:47]} d6 {[%emt 0:01:19]} 10. Bb2 {[%emt 0:00:44]} O-O {[%emt 0:00:31]} 11. Qc2 {[%emt 0:01:45]} Re8 {[%emt 0:01:38]} 12. O-O-O {[%emt 0:01:34]} Ng4 13. Kb1 {[%emt 0:02:00]} Qg5 {[%emt 0:01:41]} 14. Ka2 {[%emt 0:06:07]} Bf5 {[%emt 0:01:10]} 15. Qd2 {[%emt 0:02:20]} c6 {[%emt 0:02:17]} 16. g3 {[%emt 0:06:49]} Rad8 {[%emt 0:05:42]} 17. h3 {[%emt 0:02:39]} Nf6 {[%emt 0:00:39]} 18. Bd3 {[%emt 0:01:28]} d5 {[%emt 0:01:08]} 19. cxd5 {[%emt 0:03:22]} Nxd5 {[%emt 0:00:21]} 20. Qc2 {[%emt 0:02:35]} Be6 {[%emt 0:02:55]} 21. Ne4 {[%emt 0:01:17]} 1-0

[Event "Nordic Youth-ch A 2019"]
[Site "Borgarnes"]
[Date "2019.02.15"]
[Round "2.14"]
[White "Falkevall, Axel"]
[Black "Briem, Benedikt"]
[Result "1-0"]
[ECO "C07"]
[WhiteElo "2070"]
[BlackElo "1868"]
[Annotator "NA RC"]
[PlyCount "45"]
[EventDate "2019.02.03"]
[EventType "swiss"]
[EventCountry "ISL"]
[SourceTitle "playchess.com"]
[Source "ChessBase"]
[SourceQuality "1"]
[TimeControl "40/5400+30:1800+30"]

1. e4 {[%emt 0:00:00]} e6 {[%emt 0:00:00]} 2. d4 {[%emt 0:00:00]} d5 {[%emt 0:00:00]} 3. Nd2 {[%emt 0:00:05]} c5 {[%emt 0:00:23]} 4. exd5 {[%emt 0:00:24]} Qxd5 {[%emt 0:00:14]} 5. Ngf3 {[%emt 0:00:10]} Nf6 {[%emt 0:00:22]} 6. Bc4 {[%emt 0:00:22]} Qd8 {[%emt 0:00:23]} 7. O-O {[%emt 0:00:55]} cxd4 {[%emt 0:01:47]} 8. Nb3 {[%emt 0:00:50] C07: French Tarrasch: 3...c5, 4 Ngf3 and 4 exd5 Qxd5} Be7 {[%emt 0:00:53]} (8... Nc6 9. Qe2 Bd6 10. Rd1 O-O 11. Nbxd4 Nxd4 12. Rxd4 Qc7 13. Bg5 e5 14. Rh4 Bf5 15. Bxf6 gxf6 16. Bd3 Bg6 17. Rc4 Qd7 18. Rd1 {½-½ (34) Rublevsky,S (2681)-Alekseev,E (2632) Khanty-Mansiysk 2016}) 9. Nbxd4 {[%emt 0:01:48]} O-O {[%emt 0:00:46]} 10. Qe2 {[%emt 0:04:58]} a6 {[%emt 0:02:40]} 11. Bf4 {[%emt 0:06:24]} b5 {[%emt 0:10:12]} 12. Bb3 {[%emt 0:00:33]} Bb7 $146 {[%emt 0:00:32]} ({Predecessor:} 12... Qb6 13. Rfd1 Bc5 {½-½ (44) Shahaliyev,I (2206)-Sibashvili,G (2364) Batumi 2014}) 13. Rad1 {[%emt 0:06:13]} Qb6 {[%emt 0:06:38]} 14. Rfe1 {[%emt 0:05:24]} Nd5 $2 {[%emt 0:05:11]} (14... Nc6 $11 {and Black has nothing to worry.}) 15. Bg3 {[%emt 0:02:11]} Bf6 16. Ne5 {[%emt 0:10:58]} Rd8 {[%emt 0:13:07] [#]} 17. Nxf7 $1 {[%emt 0:07:25]} Kxf7 18. Qh5+ Kg8 {[%emt 0:26:06]} 19. Rxe6 {[%emt 0:06:33]} Nc6 {[%emt 0:06:27]} 20. Bxd5 {[%emt 0:00:57]} g6 {[%emt 0:05:49]} 21. Rxc6+ {[%emt 0:03:56]} Rxd5 {[%emt 0:00:56]} 22. Qxd5+ {[%emt 0:00:14]} Kh8 {[%emt 0:01:21]} 23. Rxb6 {[%emt 0:00:14]} 1-0

[Event "Nordic Youth-ch A 2019"]
[Site "Borgarnes"]
[Date "2019.02.15"]
[Round "2.15"]
[White "Apol, Luitjen Akselsson"]
[Black "Shehzad, Shazil"]
[Result "1-0"]
[ECO "B43"]
[WhiteElo "1854"]
[BlackElo "1959"]
[Annotator "NA RC"]
[PlyCount "123"]
[EventDate "2019.02.03"]
[EventType "swiss"]
[EventCountry "ISL"]
[SourceTitle "playchess.com"]
[Source "ChessBase"]
[SourceQuality "1"]
[TimeControl "40/5400+30:1800+30"]

1. e4 {[%emt 0:00:00]} c5 {[%emt 0:00:00]} 2. Nf3 {[%emt 0:00:33]} e6 {[%emt 0:00:00]} 3. d4 {[%emt 0:00:46]} cxd4 {[%emt 0:00:00]} 4. Nxd4 {[%emt 0:00:17]} a6 {[%emt 0:00:00]} 5. Nc3 {[%emt 0:00:38]} b5 {[%emt 0:00:01]} 6. Be3 {[%emt 0:00:24]} Bb7 {[%emt 0:00:27]} 7. Bd3 {[%emt 0:00:47] B43: Sicilian: Kan Variation: 5 Nc3} (7. Nb3 Qc7 8. Qd4 Nf6 9. f3 d5 10. exd5 Nxd5 11. Nxd5 {½-½ (11) Plat,V (2566)-Stocek,J (2568) Ostrava 2018}) 7... Qc7 {[%emt 0:01:20]} 8. O-O {[%emt 0:01:33]} Nf6 {[%emt 0:00:26]} 9. Qe2 {[%emt 0:04:03]} d6 {[%emt 0:05:12]} 10. f4 {[%emt 0:01:03]} Nbd7 {[%emt 0:01:13]} 11. Rae1 {[%emt 0:06:07]} Nc5 $146 {[%emt 0:01:27]} ({Predecessor:} 11... b4 12. Na4 Nxe4 13. f5 e5 14. f6 Nexf6 15. Nf5 g6 16. Nh6 {0-1 (34) Zivkovic,D-Vulicevic,D (2150) Belgrade 2003}) 12. Bf2 {[%emt 0:21:54]} b4 {[%emt 0:03:11]} 13. e5 {[%emt 0:03:49]} bxc3 {[%emt 0:03:07]} 14. exf6 {[%emt 0:00:06]} gxf6 {[%emt 0:00:27]} 15. bxc3 {[%emt 0:03:58]} h5 {[%emt 0:04:41]} 16. Bh4 {[%emt 0:06:47]} Be7 {[%emt 0:09:12]} 17. Bf5 {[%emt 0:06:45]} O-O-O {[%emt 0:08:01]} 18. Rf2 {[%emt 0:08:55]} Rd7 {[%emt 0:04:22]} 19. Bd3 {[%emt 0:07:15]} d5 {[%emt 0:06:04]} ({Better is} 19... Bd8 $17) 20. Rb1 {[%emt 0:06:08]} (20. Rf3 $11 {remains equal.}) 20... Rd6 {[%emt 0:06:02]} (20... Ne4 $15 21. Bxe4 dxe4) 21. Rff1 {[%emt 0:02:32]} Rb6 {[%emt 0:03:30]} 22. Bf2 {[%emt 0:06:28]} Rxb1 {[%emt 0:01:28]} 23. Rxb1 {[%emt 0:00:05]} h4 {[%emt 0:08:39]} 24. Qg4 {[%emt 0:03:19]} Nxd3 {[%emt 0:02:45]} 25. cxd3 {[%emt 0:00:05]} Rf8 {[%emt 0:12:55]} (25... h3 $14) 26. Bxh4 {[%emt 0:02:14]} f5 {[%emt 0:08:25]} 27. Qg7 {[%emt 0:00:05]} Bd6 {[%emt 0:01:10]} 28. Bf6 {[%emt 0:01:02]} Re8 {[%emt 0:02:00]} 29. g3 {[%emt 0:03:28]} Bf8 {[%emt 0:03:31]} 30. Qh7 {[%emt 0:00:51]} Bd6 {[%emt 0:00:56]} 31. Nf3 {[%emt 0:01:58]} d4 {[%emt 0:00:48]} 32. Nxd4 {[%emt 0:00:06]} Bc5 {[%emt 0:00:18]} 33. Kf1 {[%emt 0:01:47]} Qd7 {[%emt 0:01:50]} 34. Qh3 {[%emt 0:00:37]} Qd5 {[%emt 0:00:13]} 35. Rb2 {[%emt 0:00:29]} Qh1+ {[%emt 0:00:40]} 36. Ke2 {[%emt 0:00:25]} Bg2 {[%emt 0:01:15]} 37. Qh5 {[%emt 0:00:23]} Bf1+ {[%emt 0:01:51]} 38. Ke3 {[%emt 0:00:42]} Qg1+ {[%emt 0:00:38]} 39. Rf2 {[%emt 0:00:07]} Ba3 {[%emt 0:00:44]} 40. Qd1 {[%emt 0:00:16]} e5 {[%emt 0:00:35]} 41. fxe5 {[%emt 0:30:31]} f4+ {[%emt 0:30:08]} 42. gxf4 {[%emt 0:00:05]} Qg6 {[%emt 0:00:43]} 43. Rxf1 {[%emt 0:01:11]} Qxf6 {[%emt 0:00:33]} 44. Qg4+ {[%emt 0:00:04]} Kc7 {[%emt 0:00:15]} 45. Rb1 {[%emt 0:00:45]} Qh6 {[%emt 0:00:53]} 46. Qg2 {[%emt 0:00:55]} Rxe5+ {[%emt 0:00:12]} 47. Kd2 {[%emt 0:00:25]} Qxf4+ {[%emt 0:00:18]} 48. Kc2 {[%emt 0:00:11]} Rc5 {[%emt 0:00:41]} 49. Qb7+ {[%emt 0:00:32]} Kd8 {[%emt 0:00:19]} 50. Nc6+ {[%emt 0:00:35]} (50. Qxa6 $142 Qxh2+ 51. Kb3 {[%mdl 64] Trapped Piece}) 50... Rxc6 {[%emt 0:00:07]} 51. Qxc6 {[%emt 0:00:06]} Qxh2+ $18 {[%emt 0:00:46]} 52. Kb3 {[%emt 0:00:35]} Qb8+ {[%emt 0:00:05]} 53. Kxa3 {[%emt 0:00:05]} Qxb1 {[%emt 0:00:03]} 54. Qd6+ {[%emt 0:00:48]} Ke8 {[%emt 0:00:11]} 55. Qxa6 {[%emt 0:00:05]} Kf8 {[%emt 0:00:24]} 56. Qc8+ {[%emt 0:00:22]} Kg7 {[%emt 0:00:05]} 57. Qg4+ {[%emt 0:00:10]} Kf8 {[%emt 0:00:05]} 58. Qb4+ {[%emt 0:01:01]} Qxb4+ 59. Kxb4 {[%emt 0:00:12]} f5 {[%emt 0:01:34]} 60. Kc5 {[%emt 0:00:11]} Ke7 {[%emt 0:00:07]} 61. Kd4 {[%emt 0:00:05]} Ke6 {[%emt 0:00:04]} 62. a3 1-0

[Event "Nordic Youth-ch A 2019"]
[Site "Borgarnes"]
[Date "2019.02.15"]
[Round "2.16"]
[White "Iskos, Lukas"]
[Black "Gudmundsson, Gunnar Erik"]
[Result "0-1"]
[ECO "B46"]
[WhiteElo "1678"]
[BlackElo "1693"]
[Annotator "NA RC"]
[PlyCount "38"]
[EventDate "2019.02.03"]
[EventType "swiss"]
[EventCountry "ISL"]
[SourceTitle "playchess.com"]
[Source "ChessBase"]
[SourceQuality "1"]
[TimeControl "40/5400+30:1800+30"]

1. e4 {[%emt 0:00:00]} c5 {[%emt 0:00:00]} 2. Nf3 {[%emt 0:01:04]} Nc6 {[%emt 0:01:21]} 3. d4 {[%emt 0:01:13]} cxd4 {[%emt 0:00:09]} 4. Nxd4 {[%emt 0:00:53]} e6 {[%emt 0:00:21]} 5. Nc3 {[%emt 0:01:18]} a6 {[%emt 0:01:25]} 6. Bc4 {[%emt 0:03:35]} Qc7 {[%emt 0:00:38]} 7. Be3 {[%emt 0:05:09]} Nf6 {[%emt 0:02:25]} 8. f3 {[%emt 0:05:05]} Bb4 {[%emt 0:02:06]} 9. Qd2 {[%emt 0:02:48]} O-O {[%emt 0:04:30]} 10. O-O-O {[%emt 0:10:23]} Ne7 {[%emt 0:05:40]} 11. Bd3 {[%emt 0:05:27]} e5 {[%emt 0:05:45]} 12. Nde2 {[%emt 0:02:55]} d5 {[%emt 0:01:59]} 13. exd5 {[%emt 0:04:11]} Nexd5 {[%emt 0:03:31]} 14. h4 {[%emt 0:04:32]} Nxc3 {[%emt 0:10:49]} 15. Nxc3 {[%emt 0:00:58]} Be6 {[%emt 0:03:07]} 16. Bg5 {[%emt 0:09:57]} Nd5 {[%emt 0:05:03]} 17. Bxh7+ {[%emt 0:04:15]} Kh8 {[%emt 0:00:17]} 18. Be4 {[%emt 0:04:57]} Nxc3 {[%emt 0:02:59]} 19. bxc3 {[%emt 0:01:21]} Ba3+ {[%emt 0:00:36]} 0-1

[Event "Nordic Youth-ch A 2019"]
[Site "Borgarnes"]
[Date "2019.02.15"]
[Round "2.17"]
[White "Kvaloy, Aksel Bu"]
[Black "Jaakkola, Niklas"]
[Result "1-0"]
[ECO "B30"]
[WhiteElo "2066"]
[BlackElo "1635"]
[Annotator "NA RC"]
[PlyCount "73"]
[EventDate "2019.02.03"]
[EventType "swiss"]
[EventCountry "ISL"]
[SourceTitle "playchess.com"]
[Source "ChessBase"]
[SourceQuality "1"]
[TimeControl "40/5400+30:1800+30"]

1. e4 {[%emt 0:00:00]} c5 {[%emt 0:00:00]} 2. Nf3 {[%emt 0:00:00]} Nc6 {[%emt 0:00:00]} 3. Bb5 {[%emt 0:00:00]} d6 {[%emt 0:02:54]} 4. O-O {[%emt 0:00:38]} Bd7 {[%emt 0:08:37]} 5. Re1 {[%emt 0:00:16]} Nf6 {[%emt 0:03:06]} 6. c3 {[%emt 0:01:19]} e6 {[%emt 0:12:34]} 7. d4 {[%emt 0:04:15]} cxd4 {[%emt 0:15:18]} 8. cxd4 {[%emt 0:00:10]} a6 {[%emt 0:06:10] B51: Sicilian: Moscow Variation (3 Bb5+) without 3...Bd7} (8... d5 9. e5 Ng8 10. Nc3 Nge7 11. Bd3 a6 12. h4 Qb6 13. Na4 Qc7 14. h5 g6 15. Bg5 Rg8 16. hxg6 Nxg6 {1-0 (50) Ponkratov,P (2613)-Vykouk,J (2435) Katowice 2017}) 9. Bf1 {[%emt 0:02:00]} e5 {[%emt 0:04:56]} 10. Nc3 {[%emt 0:09:09]} Be7 {[%emt 0:07:09]} 11. d5 {[%emt 0:00:35]} Nb8 $146 {[%emt 0:01:05]} ({Predecessor:} 11... Na7 12. a4 b5 13. axb5 Nxb5 14. Qb3 Nxc3 15. Qxc3 a5 16. Bd2 {1-0 (56) Reyer,U (2200)-Schwetje,S (1986) Apolda 2007}) 12. a4 {[%emt 0:01:29]} b6 {[%emt 0:11:26]} 13. h3 {[%emt 0:08:48]} O-O {[%emt 0:03:12]} 14. Be3 {[%emt 0:04:08]} Bc8 {[%emt 0:00:24]} 15. Nd2 {[%emt 0:02:02]} Re8 {[%emt 0:02:15]} 16. Nc4 {[%emt 0:02:33]} Nbd7 {[%emt 0:03:26]} 17. f4 {[%emt 0:08:54]} (17. b4 $16) 17... exf4 {[%emt 0:01:59]} 18. Bxf4 {[%emt 0:00:12]} Qc7 {[%emt 0:00:13]} 19. Rc1 {[%emt 0:09:46]} (19. b4 $16) 19... Qb8 $1 {[%emt 0:01:34]} 20. Kh1 {[%emt 0:02:34]} Bf8 {[%emt 0:05:21]} 21. Qd4 {[%emt 0:05:21]} Nh5 {[%emt 0:04:16] [#]} 22. Bh2 $1 {[%emt 0:01:50]} g6 {[%emt 0:00:48]} (22... h6 $16 23. Be2 Nhf6) 23. g4 {[%emt 0:01:24]} Ng7 {[%emt 0:00:11]} 24. Bg2 {[%emt 0:01:15]} b5 {[#]} 25. Na5 $1 {[%emt 0:05:25]} Bb7 $18 {[%emt 0:04:02]} 26. b4 {[%emt 0:06:20]} bxa4 {[%emt 0:00:26]} 27. Nxa4 {[%emt 0:00:21]} Be7 {[%emt 0:00:54]} 28. Rf1 {[%emt 0:08:50]} Rc8 {[%emt 0:00:47]} 29. Nc6 {[%emt 0:02:47]} Bxc6 {[%emt 0:00:24]} 30. dxc6 {[%emt 0:00:01]} Ne5 {[%emt 0:00:26]} 31. Nb6 {[%emt 0:01:30]} Ne6 {[%emt 0:00:36]} 32. Qf2 {[%emt 0:00:38]} f6 {[%emt 0:00:29]} 33. Nxa8 {[%emt 0:01:38]} Nd3 {[%emt 0:00:29]} 34. Qa2 {[%emt 0:00:19]} Nxc1 {[%emt 0:00:26]} 35. Qxe6+ {[%emt 0:00:06]} Kf8 {[%emt 0:00:07]} 36. Rxc1 {[%emt 0:00:21]} Qxa8 {[%emt 0:00:32]} 37. Bxd6 {[%emt 0:00:30]} 1-0

[Event "Nordic Youth-ch A 2019"]
[Site "Borgarnes"]
[Date "2019.02.15"]
[Round "2.18"]
[White "Koota, Ilkka"]
[Black "Medhus, Vitus Bondo"]
[Result "1-0"]
[ECO "B22"]
[WhiteElo "1514"]
[BlackElo "1788"]
[Annotator "NA RC"]
[PlyCount "43"]
[EventDate "2019.02.03"]
[EventType "swiss"]
[EventCountry "ISL"]
[SourceTitle "playchess.com"]
[Source "ChessBase"]
[SourceQuality "1"]
[TimeControl "40/5400+30:1800+30"]

1. e4 {[%emt 0:00:00]} c5 {[%emt 0:00:00]} 2. c3 {[%emt 0:00:43]} g6 {[%emt 0:00:14]} 3. d4 {[%emt 0:00:26]} cxd4 {[%emt 0:00:19]} 4. cxd4 {[%emt 0:00:11]} d5 {[%emt 0:00:10]} 5. e5 {[%emt 0:00:24]} Bf5 {[%emt 0:00:27]} 6. Nc3 {[%emt 0:01:24]} Nc6 {[%emt 0:00:52]} 7. Bb5 {[%emt 0:01:51]} e6 {[%emt 0:01:28]} 8. g4 {[%emt 0:00:44]} Be4 {[%emt 0:00:50]} 9. f3 {[%emt 0:00:13]} Qh4+ {[%emt 0:01:36]} 10. Kf1 {[%emt 0:01:08]} Nge7 {[%emt 0:00:57]} 11. fxe4 {[%emt 0:00:24]} dxe4 {[%emt 0:00:57]} 12. Nxe4 {[%emt 0:00:14]} O-O-O {[%emt 0:00:39]} 13. Bg5 {[%emt 0:00:24]} Nd5 {[%emt 0:00:57]} 14. Qe2 {[%emt 0:01:46]} Nxd4 {[%emt 0:01:34]} 15. Bxh4 {[%emt 0:00:51]} Nxe2 {[%emt 0:01:20]} 16. Bxd8 {[%emt 0:00:28]} Nd4 {[%emt 0:01:13]} 17. Bf6 {[%emt 0:01:14]} Ne3+ {[%emt 0:03:22]} 18. Kf2 {[%emt 0:01:42]} Nxg4+ {[%emt 0:00:12]} 19. Kg2 {[%emt 0:00:54]} Nxf6 {[%emt 0:01:10]} 20. Rc1+ {[%emt 0:00:15]} Kb8 {[%emt 0:01:22]} 21. Nxf6 {[%emt 0:00:08]} Nxb5 {[%emt 0:00:36]} 22. Nd7+ {[%emt 0:00:07]} 1-0

[Event "Nordic Youth-ch A 2019"]
[Site "Borgarnes"]
[Date "2019.02.15"]
[Round "2.20"]
[White "Moller, Tomas"]
[Black "Smarason, Kristjan Ingi"]
[Result "1/2-1/2"]
[ECO "B54"]
[WhiteElo "1226"]
[BlackElo "1422"]
[Annotator "NA RC"]
[PlyCount "81"]
[EventDate "2019.02.03"]
[EventType "swiss"]
[EventCountry "ISL"]
[SourceTitle "playchess.com"]
[Source "ChessBase"]
[SourceQuality "1"]
[TimeControl "40/5400+30:1800+30"]

1. e4 {[%emt 0:00:00]} c5 {[%emt 0:00:00]} 2. Nf3 {[%emt 0:00:00]} d6 {[%emt 0:00:00]} 3. d4 {[%emt 0:00:00]} cxd4 {[%emt 0:00:00]} 4. Nxd4 {[%emt 0:00:00]} Nf6 {[%emt 0:00:12]} 5. f3 {[%emt 0:00:49]} g6 {[%emt 0:00:24]} 6. c4 {[%emt 0:00:37]} Bg7 {[%emt 0:00:37]} 7. Nc3 {[%emt 0:00:50]} O-O {[%emt 0:00:53]} 8. Be3 {[%emt 0:00:27]} Nc6 {[%emt 0:00:26]} 9. Be2 {[%emt 0:01:06]} Bd7 {[%emt 0:01:08]} 10. O-O {[%emt 0:01:11]} Qb6 {[%emt 0:04:13]} 11. Qd2 {[%emt 0:08:29]} Nxe4 {[%emt 0:06:14]} 12. fxe4 {[%emt 0:00:10]} Bxd4 {[%emt 0:01:04]} 13. Bxd4 {[%emt 0:00:07]} Nxd4 {[%emt 0:00:59]} 14. Kh1 {[%emt 0:00:16]} Nxe2 {[%emt 0:00:40]} 15. Qxe2 {[%emt 0:00:08]} Rac8 {[%emt 0:02:31]} 16. Nd5 {[%emt 0:00:54]} Qd8 {[%emt 0:01:19]} 17. Rac1 {[%emt 0:02:59]} Bc6 {[%emt 0:01:55]} 18. Nc3 {[%emt 0:03:13]} e6 {[%emt 0:01:41]} 19. Qf2 {[%emt 0:04:32]} b6 {[%emt 0:02:29]} 20. Rcd1 {[%emt 0:01:34]} Qg5 {[%emt 0:02:06]} 21. Rxd6 {[%emt 0:05:09]} Qe5 {[%emt 0:02:42]} 22. Qf4 {[%emt 0:01:58]} Qxf4 {[%emt 0:01:07]} 23. Rxf4 {[%emt 0:00:11]} Rfd8 {[%emt 0:01:53]} 24. Rxd8+ {[%emt 0:01:13]} Rxd8 {[%emt 0:00:09]} 25. Kg1 {[%emt 0:03:36]} Rd4 {[%emt 0:03:02]} 26. g3 {[%emt 0:01:00]} Rxc4 {[%emt 0:01:00]} 27. Kf2 {[%emt 0:00:35]} Kf8 {[%emt 0:01:43]} 28. Ke3 {[%emt 0:00:11]} Rc5 {[%emt 0:01:14]} 29. Kd3 Bb5+ {[%emt 0:01:02]} 30. Ke3 {[%emt 0:01:23]} Rh5 {[%emt 0:02:26]} 31. b3 {[%emt 0:04:44]} Bc6 {[%emt 0:01:14]} 32. h4 {[%emt 0:00:41]} Rc5 {[%emt 0:02:01]} 33. Kd3 {[%emt 0:03:18]} Bb5+ {[%emt 0:02:11]} 34. Kd2 {[%emt 0:01:58]} Ke7 {[%emt 0:03:38]} 35. g4 {[%emt 0:03:08]} Bd7 {[%emt 0:01:14]} 36. g5 {[%emt 0:00:56]} Re5 {[%emt 0:03:12]} 37. Ke3 {[%emt 0:00:21]} Rc5 {[%emt 0:03:36]} 38. Kd3 {[%emt 0:00:30]} b5 {[%emt 0:02:23]} 39. b4 {[%emt 0:01:32]} Rc6 {[%emt 0:02:37]} 40. e5 {[%emt 0:01:49]} Rb6 {[%emt 0:01:54]} 41. Ne4 {[%emt 0:31:53]} 1/2-1/2

[Event "Nordic Youth-ch A 2019"]
[Site "Borgarnes"]
[Date "2019.02.16"]
[Round "3.1"]
[White "Thorgeirsson, Jon Kristinn"]
[Black "Nazarova, Anastasia"]
[Result "1-0"]
[ECO "D01"]
[WhiteElo "2306"]
[BlackElo "2176"]
[Annotator "NA"]
[PlyCount "99"]
[EventDate "2019.02.03"]
[EventType "swiss"]
[EventCountry "ISL"]
[SourceTitle "playchess.com"]
[Source "ChessBase"]
[SourceQuality "1"]
[TimeControl "5400+30"]

1. d4 {[%emt 0:01:13]} d5 {[%emt 0:00:00]} 2. Nc3 {[%emt 0:01:15]} Nf6 {[%emt 0:01:04]} 3. Bg5 {[%emt 0:00:15]} Nbd7 {[%emt 0:01:48]} 4. Qd3 {[%emt 0:07:30]} e6 {[%emt 0:19:56]} 5. e4 {[%emt 0:10:00]} dxe4 {[%emt 0:01:02]} 6. Nxe4 {[%emt 0:00:09]} Be7 {[%emt 0:00:06]} 7. Bxf6 {[%emt 0:00:27]} Nxf6 {[%emt 0:06:12]} 8. Nf3 {[%emt 0:00:12]} Qd5 {[%emt 0:06:28]} 9. Nc3 {[%emt 0:18:16]} Qa5 {[%emt 0:14:36]} 10. Ne5 {[%emt 0:02:42]} O-O {[%emt 0:10:22]} 11. O-O-O {[%emt 0:07:46]} c5 {[%emt 0:06:06]} 12. Be2 {[%emt 0:16:03]} Rd8 {[%emt 0:05:19]} 13. Qb5 {[%emt 0:27:36]} Qc7 {[%emt 0:02:40]} 14. Qc4 {[%emt 0:02:01]} a6 {[%emt 0:00:19]} 15. Bf3 {[%emt 0:00:11]} Rb8 {[%emt 0:04:06]} 16. Ne4 {[%emt 0:00:37]} b5 {[%emt 0:03:57]} 17. Qe2 {[%emt 0:00:54]} Rxd4 {[%emt 0:03:39]} 18. Nc6 {[%emt 0:00:50]} Rxd1+ {[%emt 0:05:51]} 19. Rxd1 {[%emt 0:00:02]} Rb6 {[%emt 0:03:59]} 20. Nxe7+ {[%emt 0:00:37]} Qxe7 {[%emt 0:00:31]} 21. Nxc5 {[%emt 0:00:13]} g6 {[%emt 0:00:25]} 22. Qe5 {[%emt 0:00:30]} Ne8 {[%emt 0:00:50]} 23. Ne4 {[%emt 0:00:49]} f5 {[%emt 0:00:54]} 24. Nc3 {[%emt 0:00:43]} Bb7 {[%emt 0:01:11]} 25. Bxb7 {[%emt 0:01:02]} Rxb7 26. Re1 {[%emt 0:00:19]} Nc7 {[%emt 0:00:47]} 27. f4 {[%emt 0:00:37]} Rb6 {[%emt 0:00:20]} 28. Rd1 {[%emt 0:00:17]} Rc6 {[%emt 0:00:29]} 29. Qd4 {[%emt 0:00:32]} b4 {[%emt 0:00:37]} 30. Qd8+ {[%emt 0:00:38]} Qxd8 {[%emt 0:00:34]} 31. Rxd8+ {[%emt 0:00:02]} Kg7 {[%emt 0:00:13]} 32. Ne2 {[%emt 0:00:09]} Nb5 {[%emt 0:00:21]} 33. Kd2 {[%emt 0:00:34]} Kf6 {[%emt 0:00:57]} 34. Rh8 {[%emt 0:00:37]} Kg7 {[%emt 0:00:40]} 35. Rb8 {[%emt 0:00:13]} Kf6 {[%emt 0:00:17]} 36. Nc1 {[%emt 0:00:23]} Rc4 {[%emt 0:00:50]} 37. Nd3 {[%emt 0:00:12]} h6 {[%emt 0:00:28]} 38. Rb6 {[%emt 0:00:38]} Re4 {[%emt 0:00:28]} 39. Rxa6 {[%emt 0:00:54]} Nd4 {[%emt 0:00:15]} 40. Nxb4 {[%emt 0:00:22]} Nf3+ {[%emt 0:00:47]} 41. Kc3 {[%emt 0:00:24]} Nxh2 {[%emt 0:00:26]} 42. a4 {[%emt 0:01:45]} g5 {[%emt 0:00:27]} 43. fxg5+ {[%emt 0:00:17]} hxg5 {[%emt 0:00:13]} 44. a5 {[%emt 0:00:12]} f4 {[%emt 0:00:36]} 45. Ra8 {[%emt 0:00:21]} f3 {[%emt 0:00:44]} 46. gxf3 {[%emt 0:00:09]} Re3+ {[%emt 0:00:09]} 47. Nd3 {[%emt 0:00:31]} Nxf3 {[%emt 0:00:47]} 48. a6 {[%emt 0:00:11]} Ne5 {[%emt 0:00:33]} 49. a7 {[%emt 0:00:09]} Nxd3 {[%emt 0:00:31]} 50. cxd3 {[%emt 0:00:11]} 1-0

[Event "Nordic Youth-ch A 2019"]
[Site "Borgarnes"]
[Date "2019.02.16"]
[Round "3.2"]
[White "Finnsson, Eli W."]
[Black "Kristensen, Bjarke Hautop"]
[Result "0-1"]
[ECO "B32"]
[WhiteElo "1659"]
[BlackElo "2212"]
[Annotator "NA"]
[PlyCount "54"]
[EventDate "2019.02.03"]
[EventType "swiss"]
[EventCountry "ISL"]
[SourceTitle "playchess.com"]
[Source "ChessBase"]
[SourceQuality "1"]
[TimeControl "5400+30"]

1. e4 {[%emt 0:00:00]} c5 {[%emt 0:00:00]} 2. Nf3 {[%emt 0:00:00]} Nc6 {[%emt 0:00:00]} 3. d4 {[%emt 0:00:00]} cxd4 {[%emt 0:00:00]} 4. Nxd4 {[%emt 0:00:00]} e5 {[%emt 0:00:00]} 5. Nf3 {[%emt 0:02:08]} Nf6 {[%emt 0:00:28]} 6. Nc3 {[%emt 0:01:00]} Bb4 {[%emt 0:00:33]} 7. Bg5 {[%emt 0:04:11]} Bxc3+ {[%emt 0:17:30]} 8. bxc3 {[%emt 0:00:09]} Qa5 {[%emt 0:00:04]} 9. Bd3 {[%emt 0:08:02]} Qxc3+ {[%emt 0:00:09]} 10. Kf1 {[%emt 0:00:08]} d6 {[%emt 0:01:29]} 11. Rb1 {[%emt 0:05:00]} O-O {[%emt 0:02:15]} 12. Bxf6 {[%emt 0:01:57]} gxf6 {[%emt 0:00:02]} 13. Nh4 {[%emt 0:02:02]} Nd4 {[%emt 0:00:40]} 14. Nf5 {[%emt 0:03:04]} Bxf5 {[%emt 0:08:20]} 15. exf5 {[%emt 0:00:11]} d5 {[%emt 0:06:21]} 16. Qg4+ {[%emt 0:14:54]} Kh8 {[%emt 0:00:04]} 17. Qh4 {[%emt 0:00:09]} Qc6 {[%emt 0:00:04]} 18. c3 {[%emt 0:02:57]} e4 {[%emt 0:00:02]} 19. cxd4 {[%emt 0:04:59]} exd3 {[%emt 0:00:04]} 20. Rd1 {[%emt 0:00:36]} Rfe8 {[%emt 0:03:54]} 21. g4 {[%emt 0:07:10]} d2 {[%emt 0:03:57]} 22. Kg2 {[%emt 0:02:06]} Re2 {[%emt 0:00:06]} 23. Qh6 {[%emt 0:01:57]} Re4 {[%emt 0:11:33]} 24. h3 {[%emt 0:09:20]} Rxd4 {[%emt 0:00:11]} 25. Rxd2 {[%emt 0:00:09]} Rxd2 {[%emt 0:01:02]} 26. Qxd2 {[%emt 0:00:06]} d4+ {[%emt 0:00:53]} 27. Kg3 {[%emt 0:01:06]} Qxh1 {[%emt 0:01:47]} 0-1